[Event "Early-Titled-Tuesday-Blitz-September-12-2023"]
[Site "Chess.com"]
[Date "2023.09.12"]
[Round "3"]
[White "DTChess"]
[Black "Doomfist26"]
[Result "1-0"]
[WhiteElo "2488"]
[BlackElo "2630"]
[TimeControl "180+1"]
[EndTime "8:28:54 PDT"]
[Termination "DTChess won by resignation"]

1. e4 {[%clk 0:03:00.9]} 1... e6 {[%clk 0:03:00.6]} 2. d4 {[%clk 0:03:00.8]}
2... d5 {[%clk 0:03:01.3]} 3. Nc3 {[%clk 0:03:01.1]} 3... Nf6 {[%clk 0:03:01.2]}
4. e5 {[%clk 0:03:01.3]} 4... Nfd7 {[%clk 0:03:01.7]} 5. f4 {[%clk 0:03:01.2]}
5... c5 {[%clk 0:03:01.9]} 6. Nf3 {[%clk 0:03:01.1]} 6... Nc6 {[%clk 0:03:02.6]}
7. Be3 {[%clk 0:03:00.8]} 7... Be7 {[%clk 0:03:03.3]} 8. Qd2 {[%clk 0:03:00.1]}
8... O-O {[%clk 0:03:03.9]} 9. Be2 {[%clk 0:03:00]} 9... a6 {[%clk 0:03:02]} 10.
O-O {[%clk 0:03:00]} 10... b5 {[%clk 0:03:02.3]} 11. Nd1 {[%clk 0:03:00.3]}
11... cxd4 {[%clk 0:02:52]} 12. Nxd4 {[%clk 0:03:00.1]} 12... Bb7 {[%clk
0:02:51]} 13. Nf2 {[%clk 0:02:59.7]} 13... Rc8 {[%clk 0:02:49.6]} 14. c3 {[%clk
0:02:59.6]} 14... Nb6 {[%clk 0:02:46]} 15. b3 {[%clk 0:02:57.9]} 15... b4 {[%clk
0:02:43.7]} 16. cxb4 {[%clk 0:02:42.2]} 16... Nxb4 {[%clk 0:02:25.6]} 17. Rac1
{[%clk 0:02:36]} 17... Nd7 {[%clk 0:02:00.4]} 18. a3 {[%clk 0:02:26.2]} 18...
Nc6 {[%clk 0:01:59.4]} 19. Nxc6 {[%clk 0:02:16.3]} 19... Rxc6 {[%clk 0:01:59.5]}
20. b4 {[%clk 0:02:12.7]} 20... Qa8 {[%clk 0:01:48.3]} 21. Bd4 {[%clk
0:02:03.8]} 21... a5 {[%clk 0:01:41.3]} 22. Bb5 {[%clk 0:01:53.3]} 22... Rxc1
{[%clk 0:01:39.5]} 23. Rxc1 {[%clk 0:01:51.9]} 23... Nb8 {[%clk 0:01:32.4]} 24.
Bd3 {[%clk 0:01:45.4]} 24... Nc6 {[%clk 0:01:19.8]} 25. Bc5 {[%clk 0:01:44.1]}
25... Bxc5 {[%clk 0:01:18.6]} 26. bxc5 {[%clk 0:01:41.7]} 26... Rc8 {[%clk
0:01:10.5]} 27. Bb1 {[%clk 0:01:39.5]} 27... Ne7 {[%clk 0:01:09.6]} 28. Qd3
{[%clk 0:01:28.8]} 28... Ng6 {[%clk 0:01:08.6]} 29. Qg3 {[%clk 0:01:21.1]} 29...
d4 {[%clk 0:00:59.9]} 30. h4 {[%clk 0:01:15.2]} 30... Nf8 {[%clk 0:00:39.5]} 31.
h5 {[%clk 0:01:12.9]} 31... Qa7 {[%clk 0:00:30.5]} 32. h6 {[%clk 0:01:07.5]}
32... Ng6 {[%clk 0:00:28.2]} 33. hxg7 {[%clk 0:01:03.5]} 33... Rxc5 {[%clk
0:00:28.3]} 34. Rd1 {[%clk 0:00:59.3]} 34... Rc3 {[%clk 0:00:25.9]} 35. Qg5
{[%clk 0:00:50.1]} 35... d3 {[%clk 0:00:15.7]} 36. Bxd3 {[%clk 0:00:41.6]} 36...
Bd5 {[%clk 0:00:13.1]} 37. f5 {[%clk 0:00:36.9]} 37... exf5 {[%clk 0:00:09.3]}
38. Bxf5 {[%clk 0:00:36.7]} 38... Qc5 {[%clk 0:00:06.5]} 39. Qd8+ {[%clk
0:00:28.3]} 39... Kxg7 {[%clk 0:00:07]} 40. Qxd5 {[%clk 0:00:25.2]} 40... Qxd5
{[%clk 0:00:05.8]} 41. Rxd5 {[%clk 0:00:25.5]} 41... Nf4 {[%clk 0:00:06.6]} 42.
Rd7 {[%clk 0:00:20.4]} 42... Ne2+ {[%clk 0:00:05.4]} 43. Kh2 {[%clk 0:00:20]}
43... Kf8 {[%clk 0:00:05]} 44. Bxh7 {[%clk 0:00:19.2]} 44... Ng3 {[%clk
0:00:04.9]} 45. Rd1 {[%clk 0:00:18.2]} 45... Nh5 {[%clk 0:00:04.5]} 46. Be4
{[%clk 0:00:17.1]} 46... Rxa3 {[%clk 0:00:04.7]} 47. Bf3 {[%clk 0:00:17.4]}
47... Nf4 {[%clk 0:00:04.9]} 48. Rd7 {[%clk 0:00:17.1]} 48... Ne6 {[%clk
0:00:05.1]} 49. Bd5 {[%clk 0:00:16.1]} 49... Ng5 {[%clk 0:00:05]} 50. Ng4 {[%clk
0:00:13.9]} 50... Rd3 {[%clk 0:00:03.8]} 51. Nf6 {[%clk 0:00:13.7]} 51... Kg7
{[%clk 0:00:02.3]} 52. Rd8 {[%clk 0:00:12]} 52... Kg6 {[%clk 0:00:02.8]} 53.
Be4+ {[%clk 0:00:11.1]} 53... Nxe4 {[%clk 0:00:03.2]} 54. Rxd3 {[%clk
0:00:11.3]} 54... Nxf6 {[%clk 0:00:03.8]} 55. exf6 {[%clk 0:00:11.4]} 55... Kxf6
{[%clk 0:00:04.4]} 56. Ra3 {[%clk 0:00:12.2]} 56... Ke5 {[%clk 0:00:05.1]} 57.
Rxa5+ {[%clk 0:00:13.1]} 57... Kf4 {[%clk 0:00:05.7]} 58. Ra7 {[%clk 0:00:13.2]}
58... f5 {[%clk 0:00:06.6]} 59. Rf7 {[%clk 0:00:13.5]} 59... Kg4 {[%clk
0:00:07.3]} 60. Kg1 {[%clk 0:00:13.8]} 60... f4 {[%clk 0:00:08.2]} 61. Kf2
{[%clk 0:00:14.2]} 61... Kg5 {[%clk 0:00:08.9]} 62. Rf8 {[%clk 0:00:14.6]} 62...
Kg4 {[%clk 0:00:09.8]} 63. Rg8+ {[%clk 0:00:15]} 63... Kf5 {[%clk 0:00:10.4]}
64. Kf3 {[%clk 0:00:15.6]} 64... Ke5 {[%clk 0:00:11.3]} 65. Rf8 {[%clk
0:00:16.1]} 65... Ke6 {[%clk 0:00:11.7]} 66. Rxf4 {[%clk 0:00:17]} 1-0

[Event "Early-Titled-Tuesday-Blitz-September-12-2023"]
[Site "Chess.com"]
[Date "2023.09.12"]
[Round "3"]
[White "WindWhistler11"]
[Black "Forge13"]
[Result "1-0"]
[WhiteElo "2488"]
[BlackElo "2629"]
[TimeControl "180+1"]
[EndTime "8:28:54 PDT"]
[Termination "WindWhistler11 won on time"]

1. Nf3 {[%clk 0:01:26.3]} 1... Nf6 {[%clk 0:02:58.6]} 2. g3 {[%clk 0:01:27.2]}
2... g6 {[%clk 0:02:58.8]} 3. Bg2 {[%clk 0:01:27.4]} 3... Bg7 {[%clk 0:02:59.7]}
4. O-O {[%clk 0:01:27.4]} 4... O-O {[%clk 0:03:00]} 5. c4 {[%clk 0:01:27.8]}
5... d6 {[%clk 0:03:00.7]} 6. Nc3 {[%clk 0:01:28.4]} 6... Nc6 {[%clk 0:02:58.9]}
7. d4 {[%clk 0:01:28.5]} 7... a6 {[%clk 0:02:56.6]} 8. e3 {[%clk 0:01:29]} 8...
Rb8 {[%clk 0:02:54.6]} 9. b3 {[%clk 0:01:29.3]} 9... b5 {[%clk 0:02:53.6]} 10.
Nd2 {[%clk 0:01:29.3]} 10... Bd7 {[%clk 0:02:52.7]} 11. Bb2 {[%clk 0:01:26.5]}
11... e5 {[%clk 0:02:48.7]} 12. d5 {[%clk 0:01:08]} 12... Ne7 {[%clk 0:02:47.7]}
13. c5 {[%clk 0:01:04.5]} 13... h5 {[%clk 0:02:41.6]} 14. Nde4 {[%clk
0:01:00.6]} 14... Nxe4 {[%clk 0:02:28.8]} 15. Nxe4 {[%clk 0:01:00.2]} 15... Nf5
{[%clk 0:02:29]} 16. Rc1 {[%clk 0:00:53.4]} 16... b4 {[%clk 0:02:23.7]} 17. Re1
{[%clk 0:00:52.2]} 17... Bb5 {[%clk 0:02:21.4]} 18. Qd2 {[%clk 0:00:51.2]} 18...
a5 {[%clk 0:02:21.1]} 19. a3 {[%clk 0:00:50.2]} 19... h4 {[%clk 0:02:15.5]} 20.
axb4 {[%clk 0:00:46.3]} 20... axb4 {[%clk 0:02:16.4]} 21. Qxb4 {[%clk
0:00:42.7]} 21... hxg3 {[%clk 0:02:16.3]} 22. hxg3 {[%clk 0:00:42.7]} 22... Bd3
{[%clk 0:01:56.3]} 23. Qc3 {[%clk 0:00:42]} 23... Bxe4 {[%clk 0:01:56]} 24. Bxe4
{[%clk 0:00:42.7]} 24... Ne7 {[%clk 0:01:55.7]} 25. b4 {[%clk 0:00:40.5]} 25...
f5 {[%clk 0:01:51.1]} 26. Bg2 {[%clk 0:00:40.8]} 26... Rf7 {[%clk 0:01:51.8]}
27. e4 {[%clk 0:00:39.9]} 27... fxe4 {[%clk 0:01:29.6]} 28. Bxe4 {[%clk
0:00:36.9]} 28... Nf5 {[%clk 0:01:29.9]} 29. Kg2 {[%clk 0:00:24.3]} 29... Qf6
{[%clk 0:01:23.6]} 30. Rc2 {[%clk 0:00:23.6]} 30... Nd4 {[%clk 0:01:23]} 31. Rd2
{[%clk 0:00:23.5]} 31... Rbf8 {[%clk 0:01:22.6]} 32. Rh1 {[%clk 0:00:17.5]}
32... Qg5 {[%clk 0:01:19]} 33. Bc1 {[%clk 0:00:15.6]} 33... Qg4 {[%clk
0:01:13.4]} 34. Rh4 {[%clk 0:00:16]} 34... Qg5 {[%clk 0:01:09.6]} 35. Ra2 {[%clk
0:00:16.5]} 35... Qd8 {[%clk 0:01:07.2]} 36. Bh6 {[%clk 0:00:16]} 36... g5
{[%clk 0:00:52.9]} 37. Rh5 {[%clk 0:00:13.4]} 37... Bxh6 {[%clk 0:00:39.6]} 38.
Rxh6 {[%clk 0:00:13.6]} 38... Rf6 {[%clk 0:00:40.1]} 39. Rh5 {[%clk 0:00:13.2]}
39... R6f7 {[%clk 0:00:39.2]} 40. Qe3 {[%clk 0:00:13.7]} 40... Rg7 {[%clk
0:00:38.4]} 41. Ra1 {[%clk 0:00:14.1]} 41... Nf5 {[%clk 0:00:28.1]} 42. Bxf5
{[%clk 0:00:13.7]} 42... Rxf5 {[%clk 0:00:29]} 43. Rah1 {[%clk 0:00:13.9]} 43...
Kf7 {[%clk 0:00:29.5]} 44. Rh6 {[%clk 0:00:12.4]} 44... Rf6 {[%clk 0:00:29.1]}
45. Rxf6+ {[%clk 0:00:12.3]} 45... Qxf6 {[%clk 0:00:30]} 46. Rh8 {[%clk
0:00:12.1]} 46... g4 {[%clk 0:00:24.5]} 47. Rc8 {[%clk 0:00:12.2]} 47... Kg6
{[%clk 0:00:24.1]} 48. cxd6 {[%clk 0:00:10.5]} 48... cxd6 {[%clk 0:00:24]} 49.
Rc6 {[%clk 0:00:11]} 49... Rd7 {[%clk 0:00:19.1]} 50. b5 {[%clk 0:00:10.9]}
50... Qf5 {[%clk 0:00:16.6]} 51. b6 {[%clk 0:00:11.1]} 51... Qb1 {[%clk
0:00:16.6]} 52. Rc4 {[%clk 0:00:10.7]} 52... Kf5 {[%clk 0:00:13.6]} 53. Qh6
{[%clk 0:00:09.4]} 53... Qd1 {[%clk 0:00:08.5]} 54. Qe6+ {[%clk 0:00:08.6]}
54... Kg5 {[%clk 0:00:08.6]} 55. Rc3 {[%clk 0:00:06]} 55... Rf7 {[%clk
0:00:07.1]} 56. Qxf7 {[%clk 0:00:05.5]} 1-0

[Event "Early-Titled-Tuesday-Blitz-September-12-2023"]
[Site "Chess.com"]
[Date "2023.09.12"]
[Round "3"]
[White "Leonid_Starozhilov"]
[Black "Jospem"]
[Result "0-1"]
[WhiteElo "2783"]
[BlackElo "3116"]
[TimeControl "180+1"]
[EndTime "8:28:57 PDT"]
[Termination "Jospem won by resignation"]

1. e4 {[%clk 0:03:00.9]} 1... c5 {[%clk 0:02:59.6]} 2. Nf3 {[%clk 0:03:01]} 2...
d6 {[%clk 0:03:00.1]} 3. Bb5+ {[%clk 0:03:01.2]} 3... Nd7 {[%clk 0:03:00.3]} 4.
O-O {[%clk 0:03:01]} 4... Nf6 {[%clk 0:03:00.6]} 5. Re1 {[%clk 0:03:01.1]} 5...
e6 {[%clk 0:03:01.1]} 6. c4 {[%clk 0:03:00.5]} 6... Be7 {[%clk 0:03:00.8]} 7.
Nc3 {[%clk 0:03:00.7]} 7... O-O {[%clk 0:03:01]} 8. Bxd7 {[%clk 0:02:47.4]} 8...
Bxd7 {[%clk 0:02:58.3]} 9. d4 {[%clk 0:02:48.3]} 9... cxd4 {[%clk 0:02:58.8]}
10. Nxd4 {[%clk 0:02:49.1]} 10... a6 {[%clk 0:02:58.1]} 11. b3 {[%clk
0:02:46.5]} 11... Qa5 {[%clk 0:02:51.4]} 12. Bb2 {[%clk 0:02:46.4]} 12... b5
{[%clk 0:02:47.7]} 13. cxb5 {[%clk 0:02:42.5]} 13... axb5 {[%clk 0:02:48.6]} 14.
a4 {[%clk 0:02:40.6]} 14... bxa4 {[%clk 0:02:41.6]} 15. bxa4 {[%clk 0:02:36]}
15... Qb4 {[%clk 0:02:36]} 16. Qd2 {[%clk 0:02:24.9]} 16... Rfb8 {[%clk
0:02:36.1]} 17. Ndb5 {[%clk 0:01:52.4]} 17... Bxb5 {[%clk 0:02:18.4]} 18. axb5
{[%clk 0:01:51.8]} 18... Rxa1 {[%clk 0:02:17.8]} 19. Rxa1 {[%clk 0:01:34.4]}
19... Nxe4 {[%clk 0:01:15.5]} 20. Nxe4 {[%clk 0:01:32.1]} 20... Qxe4 {[%clk
0:01:14.7]} 21. Qc3 {[%clk 0:01:15.5]} 21... Bf8 {[%clk 0:00:57]} 22. Qb3 {[%clk
0:00:30.5]} 22... Qb7 {[%clk 0:00:48.9]} 23. Ra5 {[%clk 0:00:25.5]} 23... Qb6
{[%clk 0:00:41.2]} 24. Qa4 {[%clk 0:00:16.1]} 24... e5 {[%clk 0:00:31.6]} 25. h4
{[%clk 0:00:15.9]} 25... h6 {[%clk 0:00:31.3]} 26. Bc1 {[%clk 0:00:15.5]} 26...
d5 {[%clk 0:00:25.3]} 27. h5 {[%clk 0:00:14.6]} 27... d4 {[%clk 0:00:20.3]} 28.
Bd2 {[%clk 0:00:11]} 28... d3 {[%clk 0:00:18.1]} 29. Qe4 {[%clk 0:00:10.8]}
29... Qd6 {[%clk 0:00:13]} 30. Ra6 {[%clk 0:00:08]} 30... Qc5 {[%clk 0:00:11.9]}
31. Qxd3 {[%clk 0:00:04.1]} 31... Rxb5 {[%clk 0:00:11.6]} 32. Ra1 {[%clk
0:00:03.9]} 32... Rb8 {[%clk 0:00:11.6]} 33. Be3 {[%clk 0:00:04.5]} 33... Qc6
{[%clk 0:00:11.3]} 34. Qf5 {[%clk 0:00:04.3]} 34... Re8 {[%clk 0:00:08.6]} 35.
Rc1 {[%clk 0:00:04.6]} 35... Qd6 {[%clk 0:00:06.6]} 36. Qe4 {[%clk 0:00:04.7]}
36... Qe6 {[%clk 0:00:07]} 37. Rc6 {[%clk 0:00:04.4]} 37... Qd7 {[%clk
0:00:07.4]} 38. Rc1 {[%clk 0:00:04.4]} 38... f5 {[%clk 0:00:08]} 39. Qc4+ {[%clk
0:00:04.6]} 39... Qf7 {[%clk 0:00:08.7]} 40. Qh4 {[%clk 0:00:04.2]} 40... f4
{[%clk 0:00:08.8]} 41. Bd2 {[%clk 0:00:03.7]} 41... Be7 {[%clk 0:00:09.3]} 42.
Qh3 {[%clk 0:00:03.9]} 42... Rd8 {[%clk 0:00:09.7]} 43. Rc8 {[%clk 0:00:02.9]}
43... Qd5 {[%clk 0:00:08.4]} 44. Rxd8+ {[%clk 0:00:03]} 44... Bxd8 {[%clk
0:00:09.3]} 45. Bc3 {[%clk 0:00:03]} 45... Bf6 {[%clk 0:00:09.5]} 46. Qc8+
{[%clk 0:00:02.8]} 46... Kf7 {[%clk 0:00:10]} 47. Qf5 {[%clk 0:00:02.8]} 47...
Ke7 {[%clk 0:00:08.7]} 48. Bb4+ {[%clk 0:00:02.2]} 48... Kd8 {[%clk 0:00:09]}
49. g4 {[%clk 0:00:01.6]} 49... Qd1+ {[%clk 0:00:07]} 50. Kg2 {[%clk 0:00:01.6]}
50... Qd5+ {[%clk 0:00:06.9]} 51. Kh2 {[%clk 0:00:01.3]} 51... Kc7 {[%clk
0:00:07.4]} 52. Bc3 {[%clk 0:00:01.3]} 52... Kc6 {[%clk 0:00:07.8]} 53. Qc2
{[%clk 0:00:01.6]} 53... Qc5 {[%clk 0:00:08.1]} 54. Qd3 {[%clk 0:00:02]} 54...
Qxf2+ {[%clk 0:00:08.2]} 55. Kh3 {[%clk 0:00:02.7]} 55... Qh4+ {[%clk
0:00:08.7]} 56. Kg2 {[%clk 0:00:03.4]} 56... Qxg4+ {[%clk 0:00:09.6]} 57. Kf1
{[%clk 0:00:04.1]} 57... Qe6 {[%clk 0:00:09.3]} 58. Ke1 {[%clk 0:00:05]} 58...
Qd5 {[%clk 0:00:09.7]} 59. Qa6+ {[%clk 0:00:05.6]} 59... Kd7 {[%clk 0:00:10.3]}
60. Ba5 {[%clk 0:00:06.1]} 60... Qc6 {[%clk 0:00:10.4]} 61. Qa7+ {[%clk
0:00:06.7]} 61... Ke6 {[%clk 0:00:10.9]} 62. Bd2 {[%clk 0:00:07]} 62... Qh1+
{[%clk 0:00:09.9]} 63. Ke2 {[%clk 0:00:07.3]} 63... Qxh5+ {[%clk 0:00:10.5]} 64.
Ke1 {[%clk 0:00:07.3]} 64... Qh4+ {[%clk 0:00:10.7]} 0-1

[Event "Early-Titled-Tuesday-Blitz-September-12-2023"]
[Site "Chess.com"]
[Date "2023.09.12"]
[Round "3"]
[White "Yuruultei"]
[Black "C_K_G"]
[Result "1-0"]
[WhiteElo "2346"]
[BlackElo "1961"]
[TimeControl "180+1"]
[EndTime "8:28:57 PDT"]
[Termination "Yuruultei won on time"]

1. d4 {[%clk 0:02:41.5]} 1... d5 {[%clk 0:02:59.6]} 2. c4 {[%clk 0:02:41.1]}
2... e6 {[%clk 0:02:59.9]} 3. Nf3 {[%clk 0:02:39.3]} 3... Nf6 {[%clk 0:02:59.8]}
4. g3 {[%clk 0:02:38.2]} 4... b6 {[%clk 0:02:59.4]} 5. Bg2 {[%clk 0:02:38]} 5...
Bb7 {[%clk 0:02:59.6]} 6. O-O {[%clk 0:02:38.9]} 6... Nbd7 {[%clk 0:02:59.5]} 7.
Nbd2 {[%clk 0:02:37]} 7... Bd6 {[%clk 0:02:59.1]} 8. Qc2 {[%clk 0:02:23.9]} 8...
h6 {[%clk 0:02:56.5]} 9. cxd5 {[%clk 0:02:23.2]} 9... exd5 {[%clk 0:02:54.2]}
10. Re1 {[%clk 0:02:19.6]} 10... O-O {[%clk 0:02:53.2]} 11. Nf1 {[%clk
0:02:14.8]} 11... Re8 {[%clk 0:02:51.6]} 12. Bd2 {[%clk 0:02:12]} 12... c5
{[%clk 0:02:47.4]} 13. Bc3 {[%clk 0:02:10.9]} 13... Rc8 {[%clk 0:02:44]} 14.
N1d2 {[%clk 0:02:07.2]} 14... Ne4 {[%clk 0:02:42.2]} 15. Qb1 {[%clk 0:01:42.2]}
15... cxd4 {[%clk 0:02:28.4]} 16. Bxd4 {[%clk 0:01:43.1]} 16... Bb4 {[%clk
0:02:27.9]} 17. Qd3 {[%clk 0:01:36.8]} 17... Ndc5 {[%clk 0:02:19]} 18. Bxc5
{[%clk 0:01:34.5]} 18... bxc5 {[%clk 0:02:17.7]} 19. Red1 {[%clk 0:01:32]} 19...
Qf6 {[%clk 0:01:59.7]} 20. a3 {[%clk 0:01:17.1]} 20... Ba5 {[%clk 0:01:45.5]}
21. Rab1 {[%clk 0:01:08.2]} 21... Rcd8 {[%clk 0:01:14.7]} 22. Qb5 {[%clk
0:00:50.1]} 22... Bb6 {[%clk 0:01:12.5]} 23. Nxe4 {[%clk 0:00:39.8]} 23... dxe4
{[%clk 0:01:01.3]} 24. Nd2 {[%clk 0:00:39.6]} 24... c4 {[%clk 0:00:52.6]} 25. e3
{[%clk 0:00:36.6]} 25... c3 {[%clk 0:00:47.4]} 26. bxc3 {[%clk 0:00:34.6]} 26...
Qxc3 {[%clk 0:00:46.3]} 27. Nc4 {[%clk 0:00:34.5]} 27... Qc2 {[%clk 0:00:25.6]}
28. Rxd8 {[%clk 0:00:27.8]} 28... Rxd8 {[%clk 0:00:24.4]} 29. Nxb6 {[%clk
0:00:25.7]} 29... axb6 {[%clk 0:00:14.9]} 30. Qxb6 {[%clk 0:00:26.6]} 30... Rd1+
{[%clk 0:00:14]} 31. Rxd1 {[%clk 0:00:25.7]} 31... Qxd1+ {[%clk 0:00:14.9]} 32.
Bf1 {[%clk 0:00:26]} 32... Bd5 {[%clk 0:00:15.2]} 33. Kg2 {[%clk 0:00:21.2]}
33... Qf3+ {[%clk 0:00:14.1]} 34. Kg1 {[%clk 0:00:21.1]} 34... Qd1 {[%clk
0:00:12.3]} 35. Qa6 {[%clk 0:00:17]} 35... Be6 {[%clk 0:00:11.5]} 36. a4 {[%clk
0:00:16.8]} 36... Bh3 {[%clk 0:00:09.3]} 37. a5 {[%clk 0:00:16.5]} 37... Qa1
{[%clk 0:00:09.2]} 38. Qa8+ {[%clk 0:00:12.3]} 38... Kh7 {[%clk 0:00:09.2]} 39.
Qxe4+ {[%clk 0:00:12.3]} 39... g6 {[%clk 0:00:09.6]} 40. Qc4 {[%clk 0:00:09.7]}
40... Kg8 {[%clk 0:00:07.5]} 41. a6 {[%clk 0:00:06]} 41... h5 {[%clk 0:00:07.7]}
42. a7 {[%clk 0:00:05.8]} 42... Bxf1 {[%clk 0:00:04]} 43. Qxf1 {[%clk
0:00:03.1]} 43... Qxa7 {[%clk 0:00:03.8]} 44. Qb1 {[%clk 0:00:03]} 44... Qe7
{[%clk 0:00:04.1]} 45. Qb3 {[%clk 0:00:02.8]} 45... Kg7 {[%clk 0:00:04.2]} 46.
Qc3+ {[%clk 0:00:02.8]} 46... Kh7 {[%clk 0:00:04.6]} 47. Qd4 {[%clk 0:00:03.7]}
47... Qe6 {[%clk 0:00:04.8]} 48. e4 {[%clk 0:00:04.2]} 48... h4 {[%clk
0:00:03.2]} 49. e5 {[%clk 0:00:03.3]} 49... h3 {[%clk 0:00:02.3]} 50. Qa1 {[%clk
0:00:01.6]} 1-0

[Event "Early-Titled-Tuesday-Blitz-September-12-2023"]
[Site "Chess.com"]
[Date "2023.09.12"]
[Round "3"]
[White "HanSchut"]
[Black "Rosh1610"]
[Result "1-0"]
[WhiteElo "2262"]
[BlackElo "2430"]
[TimeControl "180+1"]
[EndTime "8:28:59 PDT"]
[Termination "HanSchut won by checkmate"]

1. e4 {[%clk 0:02:59]} 1... c5 {[%clk 0:02:59.3]} 2. Nf3 {[%clk 0:02:59.5]} 2...
d6 {[%clk 0:02:57.6]} 3. d4 {[%clk 0:02:59.6]} 3... cxd4 {[%clk 0:02:58.5]} 4.
Nxd4 {[%clk 0:02:59.6]} 4... Nf6 {[%clk 0:02:59.1]} 5. f3 {[%clk 0:03:00.1]}
5... a6 {[%clk 0:02:57.5]} 6. c4 {[%clk 0:03:00.2]} 6... e6 {[%clk 0:02:53.4]}
7. Nc3 {[%clk 0:03:00]} 7... Be7 {[%clk 0:02:53.3]} 8. Be2 {[%clk 0:03:00.4]}
8... Bd7 {[%clk 0:02:52.2]} 9. O-O {[%clk 0:03:00.3]} 9... O-O {[%clk
0:02:52.3]} 10. Be3 {[%clk 0:03:00.5]} 10... Nc6 {[%clk 0:02:52.4]} 11. Rc1
{[%clk 0:03:00.5]} 11... Rc8 {[%clk 0:02:52.4]} 12. Qd2 {[%clk 0:03:00.8]} 12...
Qa5 {[%clk 0:02:46.4]} 13. Nxc6 {[%clk 0:02:58.4]} 13... Bxc6 {[%clk 0:02:32.3]}
14. Nd5 {[%clk 0:02:56.9]} 14... Qd8 {[%clk 0:02:32.7]} 15. Nxe7+ {[%clk
0:02:57]} 15... Qxe7 {[%clk 0:02:33.6]} 16. Rfd1 {[%clk 0:02:56.1]} 16... Rfd8
{[%clk 0:02:32.7]} 17. Bb6 {[%clk 0:02:56.6]} 17... Rd7 {[%clk 0:02:31.1]} 18.
b4 {[%clk 0:02:56.6]} 18... Ba4 {[%clk 0:02:12.2]} 19. Re1 {[%clk 0:02:55.7]}
19... Bc6 {[%clk 0:01:42.8]} 20. b5 {[%clk 0:02:41.4]} 20... Bxe4 {[%clk
0:01:38.8]} 21. fxe4 {[%clk 0:02:41.3]} 21... Nxe4 {[%clk 0:01:39.7]} 22. Qe3
{[%clk 0:02:35.3]} 22... Nc5 {[%clk 0:01:29.6]} 23. Bxc5 {[%clk 0:02:23.8]}
23... dxc5 {[%clk 0:01:30.5]} 24. Rcd1 {[%clk 0:02:22.8]} 24... Rcd8 {[%clk
0:01:26.4]} 25. Rxd7 {[%clk 0:02:20.2]} 25... Rxd7 {[%clk 0:01:27.3]} 26. bxa6
{[%clk 0:02:21]} 26... bxa6 {[%clk 0:01:26.6]} 27. Rd1 {[%clk 0:02:20.1]} 27...
Rxd1+ {[%clk 0:01:25.4]} 28. Bxd1 {[%clk 0:02:21]} 28... Qd6 {[%clk 0:01:25.7]}
29. Bf3 {[%clk 0:02:14.8]} 29... g6 {[%clk 0:01:24.5]} 30. h3 {[%clk 0:02:12.9]}
30... h5 {[%clk 0:01:23]} 31. Kf2 {[%clk 0:02:07.4]} 31... Kg7 {[%clk
0:01:20.5]} 32. Ke2 {[%clk 0:02:06.8]} 32... Qb6 {[%clk 0:01:13.7]} 33. Qc3+
{[%clk 0:02:00.2]} 33... Kg8 {[%clk 0:01:13.5]} 34. Qb3 {[%clk 0:02:00]} 34...
Qd6 {[%clk 0:01:11.2]} 35. Qb7 {[%clk 0:01:53.6]} 35... Qe5+ {[%clk 0:01:10.9]}
36. Kf2 {[%clk 0:01:44.9]} 36... Qd4+ {[%clk 0:01:10.2]} 37. Kg3 {[%clk
0:01:38.6]} 37... Qxc4 {[%clk 0:01:04.3]} 38. Qb3 {[%clk 0:01:30.4]} 38... h4+
{[%clk 0:00:59.5]} 39. Kf2 {[%clk 0:01:24.2]} 39... Qd4+ {[%clk 0:00:59.4]} 40.
Ke2 {[%clk 0:01:24.7]} 40... c4 {[%clk 0:00:59.7]} 41. Qc2 {[%clk 0:01:24.3]}
41... c3 {[%clk 0:00:47.3]} 42. Qd3 {[%clk 0:01:14.3]} 42... Qb4 {[%clk
0:00:45.4]} 43. Be4 {[%clk 0:00:57.7]} 43... Qb2+ {[%clk 0:00:34]} 44. Qc2
{[%clk 0:00:57.3]} 44... Qb5+ {[%clk 0:00:34.1]} 45. Bd3 {[%clk 0:00:56.1]}
45... Qe5+ {[%clk 0:00:34]} 46. Kf1 {[%clk 0:00:52.7]} 46... Kg7 {[%clk
0:00:33]} 47. Bxa6 {[%clk 0:00:45.1]} 47... f5 {[%clk 0:00:28.7]} 48. Bd3 {[%clk
0:00:44.5]} 48... Qd4 {[%clk 0:00:28.5]} 49. a4 {[%clk 0:00:42]} 49... e5 {[%clk
0:00:28.4]} 50. a5 {[%clk 0:00:41.9]} 50... e4 {[%clk 0:00:28.4]} 51. Be2 {[%clk
0:00:42.1]} 51... Kf6 {[%clk 0:00:26.2]} 52. a6 {[%clk 0:00:42.1]} 52... Ke5
{[%clk 0:00:22.2]} 53. a7 {[%clk 0:00:40.8]} 53... Qxa7 {[%clk 0:00:22]} 54.
Qxc3+ {[%clk 0:00:41.2]} 54... Kf4 {[%clk 0:00:22.2]} 55. Qd2+ {[%clk
0:00:36.5]} 55... Kg3 {[%clk 0:00:18.1]} 56. Qg5+ {[%clk 0:00:34.9]} 56... Kh2
{[%clk 0:00:16.5]} 57. Qf4+ {[%clk 0:00:33.6]} 57... Kh1 {[%clk 0:00:16.5]} 58.
Qf2 {[%clk 0:00:13.8]} 58... Qa1+ {[%clk 0:00:12]} 59. Qe1 {[%clk 0:00:14]}
59... Qb2 {[%clk 0:00:06.2]} 60. Kf2+ {[%clk 0:00:13.4]} 60... Kh2 {[%clk
0:00:05.5]} 61. Qg1# {[%clk 0:00:13.3]} 1-0